fUST/lending_fUST_20250729
["ID","MTS","AMOUNT","RATE_DAILY","PERIOD"]
[375711283,1753721446624,-460.0,0.0002,2]
[375711285,1753721446635,-460.0,0.0002,2]
[375711287,1753721446646,-4675.94,0.0002,2]
[375711289,1753721446655,-460.0,0.0002,2]
[375711291,1753721446667,-460.0,0.0002,2]
[375711293,1753721446677,-460.0,0.0002,2]
[375711295,1753721446687,-861.78,0.0002,2]
[375711297,1753721446697,-460.0,0.0002,2]
[375711299,1753721446706,-460.0,0.0002,2]
[375711301,1753721446716,-460.0,0.0002,2]
[375711303,1753721446726,-460.0,0.0002,2]
[375711305,1753721446736,-460.0,0.0002,2]
[375711307,1753721446746,-626.47,0.0002,2]
[375711309,1753721446755,-460.0,0.0002,2]
[375711311,1753721446764,-622.55,0.0002,2]
[375711312,1753721446773,-460.0,0.0002,2]
[375711314,1753721446782,-460.0,0.0002,2]
[375711316,1753721446791,-460.0,0.0002,2]
[375711318,1753721446800,-460.0,0.0002,2]
[375711320,1753721446810,-460.0,0.0002,2]
[375711322,1753721446819,-460.0,0.0002,2]
[375711324,1753721446828,-1363.32,0.0002,2]
[375711326,1753721446839,-460.0,0.0002,2]
[375711328,1753721446848,-460.0,0.0002,2]
[375711330,1753721446859,-460.0,0.0002,2]
[375711332,1753721446871,-702.27,0.0002,2]
[375711334,1753721446881,-579.61259138,0.0002,2]
[375711336,1753721446891,-460.0,0.0002,2]
[375711338,1753721446902,-460.0,0.0002,2]
[375711340,1753721446913,-460.0,0.0002,2]
[375711342,1753721446923,-460.0,0.0002,2]
[375711344,1753721446932,-460.0,0.0002,2]
[375711346,1753721446942,-460.0,0.0002,2]
[375711348,1753721446952,-460.0,0.0002,2]
[375711350,1753721446962,-449.93339625,0.0002,2]
[375711352,1753721446972,-460.0,0.0002,2]
[375711354,1753721446982,-460.0,0.0002,2]
[375711356,1753721446991,-460.0,0.0002,2]
[375711358,1753721447001,-460.0,0.0002,2]
[375711360,1753721447010,-460.0,0.0002,2]
[375711362,1753721447020,-591.48669691,0.0002,2]
[375711364,1753721447029,-460.0,0.0002,2]
[375711366,1753721447039,-460.0,0.0002,2]
[375711368,1753721447048,-460.0,0.0002,2]
[375711370,1753721447057,-460.0,0.0002,2]
[375711372,1753721447067,-2155.68,0.0002,2]
[375711374,1753721447076,-743.23,0.0002,2]
[375711376,1753721447085,-460.0,0.0002,2]
[375711378,1753721447094,-460.0,0.0002,2]
[375711380,1753721447104,-605.73,0.0002,2]
[375711382,1753721447113,-525.4,0.0002,2]
[375711396,1753721447244,-460.0,0.0002,2]
[375711398,1753721447254,-460.0,0.0002,2]
[375711400,1753721447264,-460.0,0.0002,2]
[375711402,1753721447273,-460.0,0.0002,2]
[375711404,1753721447283,-460.0,0.0002,2]
[375711406,1753721447292,-460.0,0.0002,2]
[375711408,1753721447301,-460.0,0.0002,2]
[375711410,1753721447310,-460.0,0.0002,2]
[375711412,1753721447320,-460.0,0.0002,2]
[375711414,1753721447329,-622.32,0.0002,2]
[375711416,1753721447339,-460.0,0.0002,2]
[375711418,1753721447349,-849.57,0.0002,2]
[375711420,1753721447359,-460.0,0.0002,2]
[375711422,1753721447368,-460.0,0.0002,2]
[375711424,1753721447377,-460.0,0.0002,2]
[375711426,1753721447387,-460.0,0.0002,2]
[375711428,1753721447399,-624.98,0.0002,2]
[375711430,1753721447409,-649.09,0.0002,2]
[375711431,1753721447418,-460.0,0.0002,2]
[375711432,1753721447427,-460.0,0.0002,2]
[375711433,1753721447436,-460.0,0.0002,2]
[375711434,1753721447445,-2187.3,0.0002,2]
[375711435,1753721447454,-460.0,0.0002,2]
[375711436,1753721447463,-706.71,0.0002,2]
[375711437,1753721447472,-460.0,0.0002,2]
[375711438,1753721447482,-460.0,0.0002,2]
[375711439,1753721447491,-460.0,0.0002,2]
[375711440,1753721447500,-1711.04,0.0002,2]
[375711441,1753721447509,-460.0,0.0002,2]
[375711442,1753721447518,-460.0,0.0002,2]
[375711443,1753721447527,-2804.95,0.0002,2]
[375711444,1753721447536,-460.0,0.0002,2]
[375711445,1753721447545,-460.0,0.0002,2]
[375711446,1753721447555,-460.0,0.0002,2]
[375711447,1753721447563,-460.0,0.0002,2]
[375711448,1753721447573,-460.0,0.0002,2]
[375711449,1753721447582,-460.0,0.0002,2]
[375711450,1753721447591,-460.0,0.0002,2]
[375711451,1753721447599,-751.0,0.0002,2]
[375711452,1753721447609,-460.0,0.0002,2]
[375711453,1753721447618,-460.0,0.0002,2]
[375711454,1753721447627,-704.84,0.0002,2]
[375711455,1753721447636,-460.0,0.0002,2]
[375711456,1753721447645,-475.79,0.0002,2]
[375711457,1753721447654,-2666.61,0.0002,2]
[375711458,1753721447663,-460.0,0.0002,2]
[375711459,1753721447672,-460.0,0.0002,2]
[375711460,1753721447681,-460.0,0.0002,2]
[375711461,1753721447690,-460.0,0.0002,2]
[375711462,1753721447699,-460.0,0.0002,2]
[375711463,1753721447708,-460.0,0.0002,2]
[375711464,1753721447717,-460.0,0.0002,2]
[375711465,1753721447727,-650.72,0.0002,2]
[375711466,1753721447735,-460.0,0.0002,2]
[375711467,1753721447745,-229.03170315,0.0002,2]
[375711468,1753721447755,-460.0,0.0002,2]
[375711469,1753721447764,-460.0,0.0002,2]
[375711471,1753721447773,-554.09488863,0.0002,2]
[375711473,1753721447782,-1183.38,0.0002,2]
[375711475,1753721447791,-460.0,0.0002,2]
[375711477,1753721447800,-460.0,0.0002,2]
[375711479,1753721447809,-243.85610002,0.0002,2]
[375711481,1753721447819,-460.0,0.0002,2]
[375711483,1753721447828,-460.0,0.0002,2]
[375711485,1753721447837,-2681.56,0.0002,2]
[375711487,1753721447850,-460.0,0.0002,2]
[375711489,1753721447859,-593.36,0.0002,2]
[375711491,1753721447870,-460.0,0.0002,2]
[375711493,1753721447881,-460.0,0.0002,2]
[375711495,1753721447892,-1502.79,0.0002,2]
[375711497,1753721447901,-460.0,0.0002,2]
[375711499,1753721447911,-460.0,0.0002,2]
[375711501,1753721447920,-460.0,0.0002,2]
[375711503,1753721447930,-535.87,0.0002,2]
[375711505,1753721447940,-460.0,0.0002,2]
[375711506,1753721447950,-1386.76,0.0002,2]
[375711508,1753721447960,-768.3,0.0002,2]
[375711510,1753721447970,-528.52,0.0002,2]
[375711512,1753721447979,-159.12169291,0.0002,2]
[375711514,1753721447988,-460.0,0.0002,2]
[375711516,1753721447997,-460.0,0.0002,2]
[375711518,1753721448007,-2222.21,0.0002,2]
[375711520,1753721448016,-523.99,0.0002,2]
[375711522,1753721448025,-460.0,0.0002,2]
[375711524,1753721448034,-460.0,0.0002,2]
[375711526,1753721448044,-460.0,0.0002,2]
[375711528,1753721448053,-532.78,0.0002,2]
[375711530,1753721448062,-460.0,0.0002,2]
[375711532,1753721448071,-643.34,0.0002,2]
[375711534,1753721448080,-460.0,0.0002,2]
[375711536,1753721448090,-2255.73,0.0002,2]
[375711538,1753721448099,-4716.04,0.0002,2]
[375711540,1753721448109,-329.55366207,0.0002,2]
[375711542,1753721448119,-1711.81,0.0002,2]
[375711544,1753721448128,-400.00000033,0.0002,2]
[375711546,1753721448137,-460.0,0.0002,2]
[375711548,1753721448148,-460.0,0.0002,2]
[375711550,1753721448157,-460.0,0.0002,2]
[375711552,1753721448167,-460.0,0.0002,2]
[375711554,1753721448177,-460.0,0.0002,2]
[375711556,1753721448186,-460.0,0.0002,2]
[375711558,1753721448196,-460.0,0.0002,2]
[375711560,1753721448205,-460.0,0.0002,2]
[375711562,1753721448215,-460.0,0.0002,2]
[375711564,1753721448224,-460.0,0.0002,2]
[375711566,1753721448233,-500.0,0.0002,2]
[375711568,1753721448243,-460.0,0.0002,2]
[375711570,1753721448252,-1000.0,0.00020021,2]
[375711571,1753721448261,-160.0,0.00020137,2]
[375711573,1753721448270,-160.0,0.00020137,2]
[375711575,1753721448280,-160.0,0.00020137,2]
[375711577,1753721448289,-160.0,0.00020137,2]
[375711579,1753721448298,-454.6043428,0.00020137,2]
[375711581,1753721448308,-160.0,0.00020137,2]
[375711583,1753721448318,-160.0,0.00020137,2]
[375711585,1753721448328,-160.0,0.00020138,2]
[375711587,1753721448338,-231.34820253,0.00020138,2]
[375711589,1753721448348,-160.0,0.00020138,2]
[375711591,1753721448357,-840.90880427,0.00020138,2]
[375711593,1753721448367,-312.16666667,0.00020138,2]
[375711595,1753721448376,-214.87999826,0.00020138,2]
[375711597,1753721448385,-216.06083566,0.00020138,2]
[375711599,1753721448394,-12634.73134317,0.00020138,2]
[375711601,1753721448403,-526.58819812,0.00020138,2]
[375711603,1753721448413,-578.0900773,0.00020184,2]
[375711605,1753721448422,-178.4049755,0.00020184,2]
[375711607,1753721448432,-578.0900773,0.00020184,2]
[375711609,1753721448441,-578.0900773,0.00020184,2]
[375711611,1753721448450,-178.4049755,0.00020184,2]
[375711613,1753721448460,-578.0900773,0.00020184,2]
[375711615,1753721448469,-161.0175317,0.00020184,2]
[375711617,1753721448479,-578.0900773,0.00020184,2]
[375711619,1753721448489,-322.3576669,0.00020184,2]
[375711621,1753721448500,-1500.0,0.00020268,2]
[375711623,1753721448510,-460.0,0.00020273,2]
[375711625,1753721448519,-460.0,0.00020273,2]
[375711627,1753721448528,-251.1640172,0.00020273,2]
[375711628,1753721448537,-460.0,0.00020273,2]
[375711630,1753721448545,-4675.94,0.00020273,2]
[375711632,1753721448554,-460.0,0.00020273,2]
[375711634,1753721448564,-460.8339026,0.00020273,2]
[375711636,1753721448573,-460.0,0.00020273,2]
[375711638,1753721448582,-861.78,0.00020273,2]
[375711640,1753721448592,-460.0,0.00020273,2]
[375711642,1753721448602,-460.0,0.00020273,2]
[375711644,1753721448612,-460.0,0.00020273,2]
[375711646,1753721448621,-460.0,0.00020273,2]
[375711648,1753721448631,-626.47,0.00020273,2]
[375711650,1753721448640,-460.0,0.00020273,2]
[375711652,1753721448650,-622.55,0.00020273,2]
[375711654,1753721448660,-460.0,0.00020273,2]
[375711656,1753721448669,-460.0,0.00020273,2]
[375711658,1753721448679,-460.0,0.00020273,2]
[375711660,1753721448688,-460.0,0.00020273,2]
[375711662,1753721448697,-460.0,0.00020273,2]
[375711664,1753721448708,-460.0,0.00020273,2]
[375711666,1753721448717,-1363.32,0.00020273,2]
[375711668,1753721448726,-460.0,0.00020273,2]
[375711670,1753721448736,-460.0,0.00020273,2]
[375711672,1753721448746,-460.0,0.00020273,2]
[375711674,1753721448755,-702.27,0.00020273,2]
[375711676,1753721448764,-304.36691828,0.00020273,2]
[375711678,1753721448775,-460.0,0.00020273,2]
[375711680,1753721448784,-460.0,0.00020273,2]
[375711682,1753721448794,-460.0,0.00020273,2]
[375711684,1753721448804,-460.0,0.00020273,2]
[375711686,1753721448814,-460.0,0.00020273,2]
[375711688,1753721448823,-460.0,0.00020273,2]
[375711690,1753721448832,-460.0,0.00020273,2]
[375711692,1753721448842,-460.0,0.00020273,2]
[375711694,1753721448851,-460.0,0.00020273,2]
[375711696,1753721448861,-460.0,0.00020273,2]
[375711698,1753721448871,-460.0,0.00020273,2]
[375711700,1753721448882,-460.0,0.00020273,2]
[375711702,1753721448891,-460.0,0.00020273,2]
[375711704,1753721448901,-460.0,0.00020273,2]
[375711706,1753721448911,-2155.68,0.00020273,2]
[375711708,1753721448922,-743.23,0.00020273,2]
[375711710,1753721448931,-460.0,0.00020273,2]
[375711712,1753721448940,-460.0,0.00020273,2]
[375711714,1753721448949,-605.73,0.00020273,2]
[375711716,1753721448960,-525.4,0.00020273,2]
[375711718,1753721448970,-460.0,0.00020273,2]
[375711720,1753721448979,-463.13467232,0.00020273,2]
[375711721,1753721448988,-460.0,0.00020273,2]
[375711723,1753721448997,-460.0,0.00020273,2]
[375711725,1753721449006,-460.0,0.00020273,2]
[375711727,1753721449016,-460.0,0.00020273,2]
[375711729,1753721449025,-460.0,0.00020273,2]
[375711731,1753721449034,-460.0,0.00020273,2]
[375711733,1753721449043,-460.0,0.00020273,2]
[375711735,1753721449053,-622.32,0.00020273,2]
[375711737,1753721449062,-460.0,0.00020273,2]
[375711739,1753721449071,-849.57,0.00020273,2]
[375711741,1753721449081,-460.0,0.00020273,2]
[375711743,1753721449090,-460.0,0.00020273,2]
[375711745,1753721449100,-460.0,0.00020273,2]
[375711747,1753721449110,-460.0,0.00020273,2]
[375711749,1753721449119,-624.98,0.00020273,2]
[375711751,1753721449130,-649.09,0.00020273,2]
[375711753,1753721449139,-460.0,0.00020273,2]
[375711755,1753721449150,-460.0,0.00020273,2]
[375711757,1753721449159,-460.0,0.00020273,2]
[375711759,1753721449169,-2187.3,0.00020273,2]
[375711761,1753721449179,-460.0,0.00020273,2]
[375711763,1753721449188,-706.71,0.00020273,2]
[375711765,1753721449197,-240.0,0.00020273,2]
[375711767,1753721449207,-460.0,0.00020273,2]
[375711769,1753721449216,-460.0,0.00020273,2]
[375711771,1753721449226,-1711.04,0.00020273,2]
[375711773,1753721449235,-270.84997867,0.00020273,2]
[375711775,1753721449244,-460.0,0.00020273,2]
[375711777,1753721449253,-2804.95,0.00020273,2]
[375711779,1753721449263,-460.0,0.00020273,2]
[375711781,1753721449272,-296.7458,0.00020273,2]
[375711783,1753721449282,-460.0,0.00020273,2]
[375711785,1753721449292,-460.0,0.00020273,2]
[375711787,1753721449302,-460.0,0.00020273,2]
[375711789,1753721449312,-460.0,0.00020273,2]
[375711791,1753721449321,-460.0,0.00020273,2]
[375711793,1753721449331,-751.0,0.00020273,2]
[375711795,1753721449341,-451.21176242,0.00020273,2]
[375711797,1753721449350,-460.0,0.00020273,2]
[375711799,1753721449360,-704.84,0.00020273,2]
[375711801,1753721449370,-437.94787108,0.00020273,2]
[375711803,1753721449379,-475.79,0.00020273,2]
[375711805,1753721449389,-2666.61,0.00020273,2]
[375711807,1753721449400,-460.0,0.00020273,2]
[375711809,1753721449410,-460.0,0.00020273,2]
[375711811,1753721449419,-460.0,0.00020273,2]
[375711813,1753721449429,-460.0,0.00020273,2]
[375711815,1753721449439,-460.0,0.00020273,2]
[375711817,1753721449448,-325.76464645,0.00020273,2]
[375711819,1753721449457,-460.0,0.00020273,2]
[375711821,1753721449467,-650.72,0.00020273,2]
[375711823,1753721449476,-460.0,0.00020273,2]
[375711825,1753721449485,-460.0,0.00020273,2]
[375711827,1753721449494,-460.0,0.00020273,2]
[375711829,1753721449503,-1183.38,0.00020273,2]
[375711831,1753721449512,-458.23035218,0.00020273,2]
[375711833,1753721449521,-460.0,0.00020273,2]
[375711835,1753721449530,-460.0,0.00020273,2]
[375711837,1753721449539,-2681.56,0.00020273,2]
[375711839,1753721449549,-460.0,0.00020273,2]
[375711841,1753721449558,-593.36,0.00020273,2]
[375711843,1753721449567,-460.0,0.00020273,2]
[375711845,1753721449576,-460.0,0.00020273,2]
[375711847,1753721449585,-1502.79,0.00020273,2]
[375711849,1753721449595,-460.0,0.00020273,2]
[375711851,1753721449604,-460.0,0.00020273,2]
[375711853,1753721449613,-535.87,0.00020273,2]
[375711855,1753721449623,-460.0,0.00020273,2]
[375711857,1753721449633,-1386.76,0.00020273,2]
[375711859,1753721449642,-768.3,0.00020273,2]
[375711861,1753721449652,-528.52,0.00020273,2]
[375711863,1753721449661,-460.0,0.00020273,2]
[375711865,1753721449670,-460.0,0.00020273,2]
[375711867,1753721449679,-2222.21,0.00020273,2]
[375711869,1753721449688,-523.99,0.00020273,2]
[375711871,1753721449698,-460.0,0.00020273,2]
[375711873,1753721449707,-151.0,0.00020273,2]
[375711874,1753721449716,-460.0,0.00020273,2]
[375711876,1753721449728,-532.78,0.00020273,2]
[375711878,1753721449737,-460.0,0.00020273,2]
[375711880,1753721449749,-643.34,0.00020273,2]
[375711882,1753721449758,-460.0,0.00020273,2]
[375711884,1753721449767,-2255.73,0.00020273,2]
[375711886,1753721449776,-4716.04,0.00020273,2]
[375711888,1753721449785,-1711.81,0.00020273,2]
[375711890,1753721449794,-151.0,0.00020273,2]
[375711892,1753721449803,-460.0,0.00020273,2]
[375711894,1753721449812,-329.681481,0.00020273,2]
[375711896,1753721449821,-460.0,0.00020273,2]
[375711898,1753721449830,-460.0,0.00020273,2]
[375711900,1753721449839,-460.0,0.00020273,2]
[375711902,1753721449848,-460.0,0.00020273,2]
[375711904,1753721449861,-460.0,0.00020273,2]
[375711906,1753721449882,-460.0,0.00020273,2]
[375711908,1753721449900,-329.681481,0.00020273,2]
[375711911,1753721449916,-460.0,0.00020273,2]
[375711912,1753721449929,-460.0,0.00020273,2]
[375711915,1753721449939,-151.0,0.00020273,2]
[375711916,1753721449949,-460.0,0.00020273,2]
[375711918,1753721449959,-460.0,0.00020273,2]
[375711932,1753721449968,-193.25864933,0.00020274,2]
[375711935,1753721450099,-229.23,0.00020407,2]
[375711937,1753721450108,-13800.58259017,0.000205,2]
[375711939,1753721450117,-1000.0,0.00020521,2]
[375711941,1753721450127,-652.77755015,0.00020521,2]
[375711943,1753721450136,-1001.88421175,0.00020521,2]
[375711945,1753721450147,-1000.0,0.00020521,2]
[375711946,1753721450157,-1000.0,0.00020521,2]
[375711948,1753721450167,-1000.0,0.00020521,2]
[375711950,1753721450176,-1000.0,0.00020521,2]
[375711952,1753721450186,-500.0,0.00020521,2]
[375711954,1753721450195,-500.0,0.00020521,2]
[375711956,1753721450204,-1000.0,0.00020521,2]
[375711958,1753721450214,-1000.0,0.00020521,2]
[375711960,1753721450223,-1000.0,0.00020521,2]
[375711962,1753721450233,-500.0,0.00020521,2]
[375711964,1753721450243,-1000.0,0.00020521,2]
[375711966,1753721450252,-1000.0,0.00020521,2]
[375711968,1753721450261,-1000.0,0.00020521,2]
[375711970,1753721450271,-1000.0,0.00020521,2]
[375711972,1753721450280,-1000.0,0.00020521,2]
[375711974,1753721450289,-500.0,0.00020521,2]
[375711976,1753721450299,-1000.0,0.00020521,2]
[375711978,1753721450308,-989.15162157,0.00020521,2]
[375711980,1753721450317,-502.01193188,0.00020521,2]
[375711982,1753721450327,-1000.0,0.00020521,2]
[375711984,1753721450336,-1000.0,0.00020521,2]
[375711986,1753721450345,-1000.0,0.00020521,2]
[375711988,1753721450355,-1000.0,0.00020521,2]
[375711991,1753721450371,-1000.0,0.00020521,2]
[375711994,1753721450385,-263.02104221,0.00020521,2]
[375711996,1753721450394,-460.0,0.00020547,2]
[375711998,1753721450406,-460.0,0.00020547,2]
[375712000,1753721450416,-4675.94,0.00020547,2]
[375712002,1753721450426,-460.0,0.00020547,2]
[375712004,1753721450437,-460.0,0.00020547,2]
[375712006,1753721450447,-861.78,0.00020547,2]
[375712008,1753721450457,-460.0,0.00020547,2]
[375712010,1753721450467,-460.0,0.00020547,2]
[375712012,1753721450476,-355.00028269,0.00020547,2]
[375712014,1753721450487,-626.47,0.00020547,2]
[375712016,1753721450496,-197.98413322,0.00020547,2]
[375712018,1753721450506,-622.55,0.00020547,2]
[375712020,1753721450516,-460.0,0.00020547,2]
[375712022,1753721450525,-460.0,0.00020547,2]
[375712024,1753721450535,-460.0,0.00020547,2]
[375712027,1753721450545,-460.0,0.00020547,2]
[375712029,1753721450555,-460.0,0.00020547,2]
[375712030,1753721450564,-460.0,0.00020547,2]
[375712032,1753721450573,-1363.32,0.00020547,2]
[375712035,1753721450583,-460.0,0.00020547,2]
[375712037,1753721450593,-460.0,0.00020547,2]
[375712039,1753721450603,-467.69,0.00020547,2]
[375712041,1753721450612,-702.27,0.00020547,2]
[375712043,1753721450622,-460.0,0.00020547,2]
[375712045,1753721450633,-460.0,0.00020547,2]
[375712047,1753721450642,-460.0,0.00020547,2]
[375712049,1753721450653,-460.0,0.00020547,2]
[375712051,1753721450663,-460.0,0.00020547,2]
[375712053,1753721450672,-460.0,0.00020547,2]
[375712055,1753721450682,-460.0,0.00020547,2]
[375712057,1753721450691,-460.0,0.00020547,2]
[375712059,1753721450701,-460.0,0.00020547,2]
[375712061,1753721450711,-460.0,0.00020547,2]
[375712063,1753721450721,-460.0,0.00020547,2]
[375712065,1753721450730,-2155.68,0.00020547,2]
[375712067,1753721450739,-743.23,0.00020547,2]
[375712069,1753721450749,-460.0,0.00020547,2]
[375712071,1753721450758,-460.0,0.00020547,2]
[375712073,1753721450768,-605.73,0.00020547,2]
[375712075,1753721450778,-525.4,0.00020547,2]
[375712077,1753721450787,-460.0,0.00020547,2]
[375712079,1753721450797,-460.0,0.00020547,2]
[375712081,1753721450806,-460.0,0.00020547,2]
[375712083,1753721450816,-151.0,0.00020547,2]
[375712085,1753721450825,-460.0,0.00020547,2]
[375712087,1753721450836,-460.0,0.00020547,2]
[375712089,1753721450845,-152.847414,0.00020547,2]
[375712091,1753721450855,-460.0,0.00020547,2]
[375712093,1753721450865,-151.0,0.00020547,2]
[375712096,1753721450876,-151.0,0.00020547,2]
[375712098,1753721450886,-460.0,0.00020547,2]
[375712100,1753721450895,-622.32,0.00020547,2]
[375712102,1753721450905,-460.0,0.00020547,2]
[375712104,1753721450915,-849.57,0.00020547,2]
[375712106,1753721450924,-151.0,0.00020547,2]
[375712108,1753721450933,-460.0,0.00020547,2]
[375712110,1753721450942,-460.0,0.00020547,2]
[375712112,1753721450954,-460.0,0.00020547,2]
[375712114,1753721450964,-460.0,0.00020547,2]
[375712116,1753721450973,-151.0,0.00020547,2]
[375712118,1753721450982,-649.09,0.00020547,2]
[375712120,1753721450991,-235.921837,0.00020547,2]
[375712122,1753721451001,-624.98,0.00020547,2]
[375712123,1753721451011,-151.454004,0.00020547,2]
[375712125,1753721451020,-460.0,0.00020547,2]
[375712127,1753721451029,-460.0,0.00020547,2]
[375712128,1753721451039,-151.0,0.00020547,2]
[375712130,1753721451048,-460.0,0.00020547,2]
[375712132,1753721451057,-2187.3,0.00020547,2]
[375712134,1753721451067,-460.0,0.00020547,2]
[375712136,1753721451076,-706.71,0.00020547,2]
[375712137,1753721451085,-460.0,0.00020547,2]
[375712139,1753721451094,-1711.04,0.00020547,2]
[375712141,1753721451103,-460.0,0.00020547,2]
[375712142,1753721451113,-2804.95,0.00020547,2]
[375712144,1753721451122,-460.0,0.00020547,2]
[375712146,1753721451131,-460.0,0.00020547,2]
[375712148,1753721451141,-460.0,0.00020547,2]
[375712149,1753721451151,-460.0,0.00020547,2]
[375712151,1753721451160,-460.0,0.00020547,2]
[375712153,1753721451169,-460.0,0.00020547,2]
[375712155,1753721451179,-751.0,0.00020547,2]
[375712156,1753721451188,-460.0,0.00020547,2]
[375712158,1753721451197,-704.84,0.00020547,2]
[375712160,1753721451206,-475.79,0.00020547,2]
[375712162,1753721451216,-2666.61,0.00020547,2]
[375712163,1753721451225,-460.0,0.00020547,2]
[375712165,1753721451234,-460.0,0.00020547,2]
[375712167,1753721451244,-460.0,0.00020547,2]
[375712169,1753721451254,-460.0,0.00020547,2]
[375712170,1753721451263,-460.0,0.00020547,2]
[375712172,1753721451273,-304.186765,0.00020547,2]
[375712174,1753721451283,-460.0,0.00020547,2]
[375712176,1753721451292,-650.72,0.00020547,2]
[375712177,1753721451301,-460.0,0.00020547,2]
[375712179,1753721451311,-304.186765,0.00020547,2]
[375712181,1753721451320,-460.0,0.00020547,2]
[375712183,1753721451329,-151.429552,0.00020547,2]
[375712184,1753721451338,-1183.38,0.00020547,2]
[375712186,1753721451348,-460.0,0.00020547,2]
[375712188,1753721451358,-460.0,0.00020547,2]
[375712190,1753721451367,-2681.56,0.00020547,2]
[375712191,1753721451377,-593.36,0.00020547,2]
[375712194,1753721451398,-460.0,0.00020547,2]
[375712196,1753721451414,-460.0,0.00020547,2]
[375712199,1753721451431,-1502.79,0.00020547,2]
[375712201,1753721451444,-460.0,0.00020547,2]
[375712203,1753721451456,-460.0,0.00020547,2]
[375712205,1753721451470,-151.0,0.00020547,2]
[375712207,1753721451482,-535.87,0.00020547,2]
[375712209,1753721451496,-460.0,0.00020547,2]
[375712212,1753721451509,-151.0,0.00020547,2]
[375712214,1753721451522,-1386.76,0.00020547,2]
[375712216,1753721451535,-768.3,0.00020547,2]
[375712218,1753721451550,-460.0,0.00020547,2]
[375712220,1753721451562,-528.52,0.00020547,2]
[375712222,1753721451574,-151.0,0.00020547,2]
[375712224,1753721451587,-460.0,0.00020547,2]
[375712227,1753721451601,-2222.21,0.00020547,2]
[375712229,1753721451612,-523.99,0.00020547,2]
[375712231,1753721451626,-151.0,0.00020547,2]
[375712233,1753721451639,-460.0,0.00020547,2]
[375712235,1753721451652,-460.0,0.00020547,2]
[375712237,1753721451663,-532.78,0.00020547,2]
[375712239,1753721451675,-460.0,0.00020547,2]
[375712241,1753721451691,-643.34,0.00020547,2]
[375712243,1753721451713,-460.0,0.00020547,2]
[375712245,1753721451726,-2255.73,0.00020547,2]
[375712248,1753721451739,-4716.04,0.00020547,2]
[375712250,1753721451753,-1711.81,0.00020547,2]
[375712252,1753721451766,-460.0,0.00020547,2]
[375712254,1753721451779,-460.0,0.00020547,2]
[375712256,1753721451792,-460.0,0.00020547,2]
[375712258,1753721451805,-435.5857907,0.00020547,2]